bitfinex/quotes_ETHUSD_20240709
["timestamp","ask_amount","ask_price","bid_price","bid_amount"]
[1720565601643,6.979,3075.9,3074.4,5.71475]
[1720565602465,0.6979,3076.0,3074.6,3.25245]
[1720565602792,2.70640491,3076.5,3074.8,6.65723]
[1720565602999,0.27610491,3076.5,3075.0,2.4497]
[1720565603283,2.4224,3077.1,3075.0,2.4497]
[1720565603491,3.429,3077.0,3075.0,5.7017]
[1720565604244,0.55,3076.8,3075.0,5.7017]
[1720565604447,0.55,3076.8,3075.0,5.76672725]
[1720565604658,6.979,3076.8,3075.0,5.76672725]
[1720565604881,0.70357353,3076.7,3075.1,0.57667273]
[1720565605081,0.70357353,3076.7,3075.2,0.06502875]
[1720565605294,0.05673528,3076.9,3075.0,5.7017]
[1720565606244,0.05673528,3076.9,3075.0,5.70166]
[1720565606449,3.05673528,3076.9,3075.3,3.25166]
[1720565606650,3.0,3076.8,3075.2,3.2518]
[1720565606880,3.429,3077.0,3075.3,0.57264]
[1720565607067,3.0,3076.9,3075.3,0.57264]
[1720565607270,3.0,3076.9,3075.3,3.82435]
[1720565607689,3.429,3077.1,3075.3,3.82427]
[1720565607986,3.55,3077.0,3075.5,5.72606]
[1720565608292,3.0,3076.9,3075.5,5.72606]
[1720565608456,0.55,3076.8,3075.6,0.6108495]
[1720565608984,0.55,3077.0,3075.5,2.4746]
[1720565611486,3.979,3077.0,3075.5,2.4746]
[1720565611787,3.0,3076.9,3075.5,2.4746]
[1720565611991,0.55,3076.8,3075.5,2.4746]
[1720565612191,0.355,3076.7,3075.5,3.1580675]
[1720565612394,0.55,3076.6,3075.5,3.1580675]
[1720565617788,3.0,3076.9,3075.8,2.546]
[1720565618101,3.66970262,3077.1,3075.9,0.2546]
[1720565618399,0.55,3077.0,3075.9,0.2546]
[1720565620714,0.55,3077.0,3076.1,2.4776]
[1720565622128,0.55,3077.3,3076.1,2.4776]
[1720565623006,6.3061,3077.3,3076.1,2.4776]
[1720565623209,3.429,3077.1,3076.1,2.4776]
[1720565623407,4.1929,3077.0,3076.1,2.4776]
[1720565624442,1.1929,3077.0,3076.1,2.4776]
[1720565625352,4.6219,3077.0,3076.1,2.4776]
[1720565625556,3.0,3076.9,3076.1,2.4776]
[1720565625723,0.55,3076.8,3075.6,2.2895]
[1720565625916,4.74119,3076.8,3075.6,2.2895]
[1720565626163,3.429,3076.6,3075.6,2.2895]
[1720565626362,3.429,3076.6,3075.0,2.546]
[1720565626363,3.979,3076.5,3075.1,2.2895]
[1720565626652,3.979,3076.5,3075.1,2.5441]
[1720565626653,3.0,3076.4,3075.1,2.5441]
[1720565626866,1.31219,3076.3,3075.2,0.50901]
[1720565627537,0.55,3076.3,3075.2,0.50901]
[1720565627875,6.979,3076.5,3075.2,0.50901]
[1720565628026,3.979,3076.5,3075.2,0.50901]
[1720565628228,3.0,3076.4,3075.2,0.50901]
[1720565628562,1.2479,3076.3,3075.3,0.305311]
[1720565629219,0.55,3076.3,3075.3,0.305311]
[1720565629418,0.55,3076.4,3075.3,0.305311]
[1720565629886,3.55,3076.4,3075.3,0.305311]
[1720565630305,0.55,3076.4,3075.3,0.305311]
[1720565630447,3.429,3076.6,3075.3,0.305311]
[1720565630649,6.979,3076.5,3075.3,0.305311]
[1720565630898,3.429,3076.5,3075.3,0.305311]
[1720565631075,3.55,3076.4,3075.3,0.305311]
[1720565631397,3.0,3076.6,3075.3,0.305311]
[1720565631703,0.55,3076.5,3075.3,0.305311]
[1720565631867,1.1929,3076.7,3075.3,0.305311]
[1720565631868,0.55,3076.7,3075.3,0.305311]
[1720565633788,7.07744874,3077.1,3075.4,4.878]
[1720565634098,3.0,3077.9,3075.6,5.58338]
[1720565634099,3.64844874,3077.7,3075.6,5.58338]
[1720565634248,2.2699,3077.8,3076.1,2.332]
[1720565634453,0.28937089,3077.6,3076.2,0.4878]
[1720565634657,0.23266099,3077.6,3076.2,0.4878]
[1720565635918,3.23266099,3077.6,3076.2,0.4878]
[1720565636581,0.55,3077.5,3076.2,0.4878]
[1720565636818,0.3782661,3077.4,3076.3,0.28198]
[1720565636970,0.55,3077.3,3076.3,0.34698603]
[1720565637411,0.55,3077.5,3076.3,0.34698603]
[1720565638016,6.429,3078.1,3076.4,4.9928]
[1720565638176,0.72336999,3078.0,3076.4,4.9928]
[1720565638382,0.05670503,3078.0,3076.4,4.9928]
[1720565638695,0.72337067,3078.0,3076.5,2.51179692]
[1720565638902,0.72337067,3078.0,3076.6,2.98997969]
[1720565639231,0.72322629,3078.0,3076.8,2.546]
[1720565639511,3.64844874,3078.6,3077.3,2.4842]
[1720565639512,0.66652126,3078.5,3077.3,2.4842]
[1720565639721,0.05668528,3078.8,3077.7,2.546]
[1720565639870,0.66617059,3079.0,3077.7,2.546]
[1720565640075,1.03101546,3079.0,3077.7,2.546]
[1720565640302,3.79384487,3079.0,3077.8,2.43]
[1720565640515,0.66617059,3078.9,3077.8,2.43]
[1720565641186,0.66617059,3079.3,3078.0,2.43]
[1720565641514,0.05668076,3079.5,3078.0,2.67949726]
[1720565642422,0.34031426,3079.4,3078.0,2.67949726]
[1720565642588,3.429,3079.3,3078.0,2.67949726]
[1720565642795,0.66599375,3079.2,3078.0,2.67949726]
[1720565643008,4.38849937,3079.1,3078.0,2.43]
[1720565643176,7.09512413,3079.0,3078.0,2.43]
[1720565643378,7.09512413,3079.0,3077.4,2.4097]
[1720565643379,3.429,3078.8,3077.4,2.4097]
[1720565643584,3.429,3078.6,3077.4,2.4097]
[1720565643885,4.07563654,3078.7,3077.4,2.4097]
[1720565643886,3.979,3078.5,3077.4,2.4097]
[1720565644103,3.0,3078.4,3077.4,2.4097]
[1720565644292,0.55,3078.3,3077.4,2.4097]
[1720565644508,0.355,3078.2,3077.4,2.4097]
[1720565644674,0.55,3078.1,3077.4,2.4097]
[1720565644895,6.64844874,3078.9,3076.6,0.50577969]
[1720565644896,0.34031426,3079.4,3078.0,2.546]
[1720565645097,0.34031426,3079.4,3077.1,4.889]
[1720565645098,0.34031426,3079.4,3079.1,2.3582]
[1720565647731,0.34031426,3079.4,3078.3,2.316]
[1720565648904,0.55,3079.3,3078.3,2.316]
[1720565649123,0.43193143,3079.2,3078.3,2.316]
[1720565649634,0.55,3079.3,3078.3,2.316]
[1720565650737,3.34031426,3079.4,3078.3,2.316]
[1720565650937,0.34031426,3079.4,3078.3,2.316]
[1720565651837,0.34031426,3079.4,3078.4,3.389]
[1720565655635,0.34031426,3079.4,3078.4,6.63742]
[1720565655837,0.34031426,3079.4,3078.5,0.895342]
[1720565656437,0.34031426,3079.4,3078.6,3.24821]
[1720565656734,0.34031426,3079.4,3078.8,2.4813]
[1720565661162,0.34031426,3079.4,3078.5,0.895342]
[1720565661325,0.34031426,3079.4,3078.4,3.389]
[1720565662021,0.34031426,3079.4,3078.3,2.2743]
[1720565662967,0.34031426,3079.4,3077.9,3.389]
[1720565668333,3.429,3079.3,3077.9,3.389]
[1720565668533,3.979,3079.2,3077.3,2.4807]
[1720565668771,3.429,3079.0,3076.9,2.4807]
[1720565669060,6.0099,3078.8,3077.0,0.24807]
[1720565669360,3.429,3078.6,3077.0,0.24807]
[1720565669560,3.429,3078.4,3076.6,0.50577969]
[1720565669859,3.429,3078.2,3076.4,2.4807]
[1720565670264,3.55,3078.1,3076.4,2.4807]
[1720565670825,3.429,3078.0,3076.1,3.389]
[1720565671030,3.429,3077.8,3076.2,0.3389]
[1720565671257,3.55,3077.9,3076.2,0.3389]
[1720565671258,2.4648,3077.5,3076.2,0.3389]
[1720565671451,2.4648,3077.5,3076.1,3.389]
[1720565671452,0.24648,3077.4,3076.3,0.37279]
[1720565671654,0.79648,3077.4,3076.3,0.37279]
[1720565672968,0.79648,3077.4,3075.9,2.3743]
[1720565673153,3.79648,3077.4,3075.6,3.389]
[1720565673331,7.22548,3077.4,3075.6,3.389]
[1720565675735,3.429,3077.2,3075.6,3.389]
[1720565676069,4.1929,3077.1,3075.7,0.3389]
[1720565676266,3.55,3077.1,3075.7,0.3389]
[1720565679748,3.55,3077.1,3075.4,2.3743]
[1720565680168,3.0,3077.0,3075.4,2.3743]
[1720565680685,3.55,3077.1,3075.4,2.3743]
[1720565680866,2.311,3077.0,3075.4,2.3743]
[1720565681194,5.311,3077.0,3075.4,2.3743]
[1720565681378,0.5861,3076.9,3075.5,0.23743]
[1720565682974,3.979,3076.8,3074.8,2.3143]
[1720565683164,3.429,3076.6,3074.8,2.3143]
[1720565683367,3.55,3076.5,3074.8,2.3143]
[1720565683697,0.6979,3076.4,3074.9,0.23143]
[1720565684389,6.25,3076.3,3074.9,0.23143]
[1720565684683,3.0,3076.2,3074.9,0.23143]
[1720565684896,0.55,3076.1,3074.9,0.23143]
[1720565685052,0.355,3076.0,3075.0,0.254573]
[1720565685251,3.0,3076.2,3075.0,0.254573]
[1720565685476,3.0,3076.2,3075.1,0.06502822]
[1720565685859,2.61163414,3076.3,3075.1,0.06502822]
[1720565686302,2.61163414,3076.3,3075.0,0.254573]
[1720565686589,2.61163414,3076.3,3075.0,0.31959603]
[1720565686590,0.34063414,3076.3,3075.0,0.31959603]
[1720565686797,0.34063414,3076.3,3075.0,0.254573]
[1720565686993,0.34063414,3076.3,3075.1,0.3254573]
[1720565691275,5.3305,3076.7,3075.1,0.3254573]
[1720565691468,3.0,3076.9,3075.3,2.3321]
[1720565691668,0.34059169,3076.7,3075.3,2.3321]
[1720565691897,0.34059169,3076.7,3075.4,0.558391]
[1720565692195,0.34059169,3076.7,3075.3,2.3321]
[1720565694018,5.7083,3076.5,3075.1,0.3254573]
[1720565694219,0.55,3076.4,3075.1,0.3254573]
[1720565694430,0.55,3076.4,3074.8,3.0]
[1720565695499,0.55,3076.4,3074.9,0.06503116]
[1720565696323,0.55,3076.4,3074.8,3.0]
[1720565696622,0.34059169,3076.7,3075.8,3.389]
[1720565696920,0.34059169,3076.7,3075.9,0.40391413]
[1720565697085,3.64844874,3077.3,3075.9,0.3389]
[1720565697421,0.34053102,3077.1,3075.9,0.3389]
[1720565700211,0.34053102,3077.1,3075.4,3.0]
[1720565700805,3.77153102,3077.1,3075.4,3.0]
[1720565700998,3.981,3077.0,3075.4,3.0]
[1720565701199,3.981,3077.0,3075.3,2.3466]
[1720565702092,3.431,3076.8,3075.3,2.3466]
[1720565702315,5.3046,3076.9,3075.4,0.23466]
[1720565702316,4.85456,3076.7,3075.4,0.23466]
[1720565702533,1.42356,3076.7,3075.4,0.23466]
[1720565704838,4.85456,3076.7,3075.3,2.3466]
[1720565705065,3.431,3076.5,3074.8,2.3613]
[1720565705264,6.3887,3076.4,3074.3,5.7503]
[1720565705538,9.3887,3076.4,3074.3,2.3613]
[1720565705701,9.3887,3076.4,3074.4,0.23613]
[1720565705702,3.431,3076.2,3074.4,0.23613]
[1720565705905,6.981,3076.1,3074.4,0.23613]
[1720565706644,3.431,3075.9,3074.4,0.23613]
[1720565706841,3.3431,3075.8,3074.5,0.259743]
[1720565707045,0.55,3075.7,3074.5,0.259743]
[1720565707346,0.55,3075.7,3073.8,3.389]
[1720565707347,3.981,3075.7,3073.9,2.4074]
[1720565707543,3.0,3075.6,3073.9,2.4074]
[1720565707707,0.55,3075.5,3073.9,2.4074]
[1720565707910,3.0,3075.6,3074.0,0.64468622]
[1720565708256,3.0,3075.9,3074.0,7.08572]
[1720565708420,2.4077,3076.0,3074.0,7.08572]
[1720565708607,0.55,3075.9,3074.1,0.949312]
[1720565708814,3.55,3075.9,3074.1,0.949312]
[1720565709355,3.431,3075.8,3074.0,0.57964]
[1720565709553,6.981,3075.7,3074.0,0.57964]
[1720565709770,3.55,3075.7,3074.0,0.57964]
[1720565710071,2.7092,3075.6,3074.0,0.57964]
[1720565710254,9.1402,3075.6,3074.0,0.57964]
[1720565710452,0.55,3075.5,3074.0,0.57964]
[1720565710761,3.981,3075.5,3074.0,0.57964]
[1720565710918,6.431,3075.4,3073.6,2.2568]
[1720565711120,6.981,3075.3,3073.6,2.2568]
[1720565711350,3.981,3075.3,3073.6,2.2568]
[1720565711515,3.431,3075.1,3073.7,0.22568]
[1720565711730,3.431,3074.9,3073.7,0.22568]
[1720565711942,3.6981,3075.2,3073.4,2.36276584]
[1720565712142,0.55,3075.1,3073.4,2.2977]
[1720565712423,1.31791,3075.1,3073.5,0.56867]
[1720565712639,0.34073598,3075.0,3073.5,0.56867]
[1720565713061,0.34073598,3075.0,3073.5,3.82221]
[1720565713234,0.34073598,3075.0,3073.6,3.865471]
[1720565713632,0.34073598,3075.0,3073.6,0.611991]
[1720565713844,0.34073598,3075.0,3073.7,0.06504933]
[1720565714022,0.34073598,3075.0,3073.8,2.2977]
[1720565714362,0.34073598,3075.0,3073.8,5.6867]
[1720565714569,0.34073598,3075.0,3073.9,0.894003]
[1720565717246,0.34073598,3075.0,3073.9,4.147183]
[1720565717567,3.64844874,3075.6,3074.3,6.64176]
[1720565717853,3.64844874,3076.2,3074.3,6.64176]
[1720565718060,0.50081516,3076.1,3074.4,0.904846]
[1720565718271,0.84147957,3076.1,3074.4,0.904846]
[1720565718967,3.84154365,3076.1,3074.4,0.904846]
[1720565719129,3.84154365,3076.1,3074.5,0.7546596]
[1720565719130,0.50087924,3076.0,3074.5,0.7546596]
[1720565719863,4.83692665,3076.1,3074.5,0.7546596]
[1720565720573,4.83692665,3076.1,3074.6,2.3675344]
[1720565720574,3.34066441,3076.1,3074.6,2.3675344]
[1720565720742,3.34066441,3076.1,3074.7,3.25228]
[1720565720743,0.34066441,3076.1,3074.7,3.25228]
[1720565720928,0.34066441,3076.1,3074.7,3.25227]
[1720565721331,0.34066441,3076.1,3075.0,2.2856]
[1720565721534,0.50058774,3076.6,3075.1,3.87070639]
[1720565721732,0.34058221,3076.6,3075.1,3.87070639]
[1720565722742,0.34058221,3076.6,3075.1,3.805687]
[1720565723056,3.84106029,3076.6,3075.1,0.553767]
[1720565723266,3.93153519,3076.5,3075.0,2.2856]
[1720565723467,3.50053519,3076.4,3075.0,2.2856]
[1720565723671,0.35005352,3076.3,3075.1,0.22856]
[1720565723881,0.50058833,3076.5,3075.1,0.22856]
[1720565725596,3.34058221,3076.6,3075.1,0.22856]
[1720565725805,1.05056782,3076.5,3075.1,0.22856]
[1720565727253,0.50056782,3076.5,3075.1,0.22856]
[1720565727693,0.84115003,3076.6,3075.1,0.22856]
[1720565727988,1.45110503,3076.6,3075.2,0.58311924]
[1720565728568,1.45110503,3076.6,3075.1,0.22856]
[1720565728955,0.95053721,3076.6,3075.1,0.22856]
[1720565729197,1.45111518,3076.6,3075.1,0.22856]
[1720565729487,3.981,3076.5,3075.1,0.22856]
[1720565729674,3.50057797,3076.4,3075.0,2.2856]
[1720565729886,0.50057797,3076.3,3075.0,2.2856]
[1720565730089,2.2946,3076.1,3074.6,2.547]
[1720565730292,0.50057797,3076.0,3074.7,0.56773596]
[1720565730657,3.50057797,3076.0,3074.7,0.56773596]
[1720565730857,0.50057797,3075.9,3074.7,0.56773596]
[1720565731099,3.93157797,3075.9,3074.6,2.547]
[1720565731308,4.05057797,3075.8,3074.5,2.3757]
[1720565731524,0.50057797,3075.7,3074.5,2.3757]
[1720565732334,3.981,3075.8,3074.5,2.3757]
[1720565732489,4.19909881,3075.7,3074.5,2.3757]
[1720565732683,1.05099881,3075.6,3074.5,2.3757]
[1720565732911,1.05099654,3075.6,3074.5,2.3757]
[1720565733683,5.7945,3075.5,3073.4,7.1284]
[1720565733886,3.431,3075.3,3073.5,0.94208]
[1720565734128,4.05099654,3075.2,3073.3,5.54616]
[1720565734326,0.50099654,3075.1,3073.3,5.54616]
[1720565734631,1.24919619,3075.1,3073.4,0.554616]
[1720565735188,1.24919619,3075.1,3073.4,3.554616]
[1720565735393,1.24919619,3075.1,3073.4,0.554616]
[1720565735625,5.7945,3074.9,3073.3,2.2924]
[1720565735920,0.50132289,3074.8,3073.3,2.2924]
[1720565736123,4.05132289,3074.8,3073.3,2.2924]
[1720565736327,0.50132289,3074.7,3073.3,2.2924]
[1720565736508,0.45526458,3074.6,3073.3,2.52164]
[1720565737026,0.34077177,3074.5,3073.3,2.52164]
[1720565737998,0.34077177,3074.5,3072.4,2.3488]
[1720565738198,2.2913,3074.3,3072.4,2.3488]
[1720565738425,0.50132289,3074.2,3072.4,2.850123]
[1720565738629,4.17868518,3074.2,3072.5,0.9502953]
[1720565738825,3.67736229,3074.2,3072.5,0.9502953]
[1720565739433,3.62736229,3074.2,3072.5,0.9502953]
[1720565739739,0.50171176,3074.1,3072.5,0.9502953]
[1720565739934,4.39390741,3074.0,3072.5,0.9502953]
[1720565740094,3.431,3073.8,3072.0,2.3488]
[1720565740300,2.2913,3073.7,3072.0,2.3488]
[1720565740536,1.62423248,3073.6,3072.1,0.23488]
[1720565740914,4.62423248,3073.6,3072.1,0.23488]
[1720565741235,3.431,3073.5,3071.7,3.398]
[1720565741736,4.12223,3073.6,3071.7,3.398]
[1720565741737,3.55,3073.4,3071.7,3.398]
[1720565741906,3.0,3073.5,3071.7,3.398]
[1720565742250,1.305323,3073.4,3071.8,0.900242]
[1720565743702,3.0,3073.5,3071.9,0.0650905]
[1720565743899,2.2913,3073.7,3072.1,2.3488]
[1720565745116,0.55,3073.6,3072.1,2.3488]
[1720565745318,3.55,3073.6,3072.1,2.3488]
[1720565745518,0.58413,3073.5,3072.2,0.23488]
[1720565746129,0.58413,3073.5,3072.3,0.06509195]
[1720565746333,3.0,3073.6,3072.3,0.06509195]
[1720565746507,2.2913,3073.7,3072.4,2.3488]
[1720565746709,2.2913,3073.7,3072.5,0.06508234]
[1720565749232,3.0,3073.9,3072.4,2.41388319]
[1720565749438,0.70613562,3073.8,3072.5,0.24138832]
[1720565749599,0.41290741,3074.0,3072.5,0.24138832]
[1720565750899,0.41290741,3074.0,3072.6,0.06507865]
[1720565751237,0.41290741,3074.0,3072.5,0.24138832]
[1720565751238,2.3785,3074.2,3072.5,3.49599832]
[1720565751430,0.55,3074.1,3072.5,3.49599832]
[1720565751604,0.55,3074.1,3072.5,0.24138832]
[1720565751800,0.29285,3074.0,3072.5,0.24138832]
[1720565752443,0.34080118,3073.9,3072.5,0.24138832]
[1720565754947,3.77180118,3073.9,3072.5,0.24138832]
[1720565755133,3.55,3073.8,3072.5,0.24138832]
[1720565756114,3.0,3073.7,3072.5,0.24138832]
[1720565756426,0.55,3073.8,3072.6,0.25901883]
[1720565757413,0.34080118,3073.9,3072.6,0.25901883]
[1720565760158,0.55,3073.8,3072.6,0.25901883]
[1720565760320,0.34080118,3073.9,3072.6,0.25901883]
[1720565760849,2.79500118,3073.9,3072.6,0.25901883]
[1720565761030,3.27950012,3073.8,3072.6,0.25901883]
[1720565761455,6.71050012,3073.8,3071.8,3.266142]
[1720565761654,3.981,3073.7,3071.8,2.3659]
[1720565761857,3.0,3073.6,3071.8,2.3659]
[1720565762061,1.2481,3073.5,3071.9,1.142783]
[1720565762562,1.2481,3073.5,3071.8,2.3659]
[1720565765954,4.6791,3073.5,3071.8,2.3659]
[1720565766152,5.8777,3073.3,3071.8,2.3659]
[1720565766662,6.981,3073.2,3071.8,2.3659]
[1720565767728,0.34084326,3073.1,3071.8,2.3659]
[1720565767925,0.73218433,3073.0,3071.9,0.23659]
[1720565768327,2.3664,3072.9,3071.9,0.23659]
[1720565768530,5.3664,3072.9,3071.5,2.3611]
[1720565770367,3.0,3072.9,3071.6,0.06510381]
[1720565770572,0.73218433,3073.0,3071.5,2.3611]
[1720565770744,0.34084326,3073.1,3071.6,0.49121]
[1720565772948,6.32284326,3073.1,3071.5,2.3611]
[1720565773204,3.431,3072.9,3071.5,2.3611]
[1720565773475,3.981,3072.8,3070.8,2.4617]
[1720565773776,3.981,3072.8,3070.9,1.22533623]
[1720565773777,9.2333,3072.7,3070.9,1.22533623]
[1720565773979,9.2333,3072.7,3070.8,2.4617]
[1720565775110,3.981,3072.6,3070.8,5.4617]
[1720565775267,3.0,3072.5,3070.8,2.4617]
[1720565775604,3.97833,3072.5,3070.9,0.51249623]
[1720565776464,7.40933,3072.5,3070.9,0.51249623]
[1720565777267,0.50264319,3072.4,3070.9,0.51249623]
[1720565777569,4.77219732,3072.3,3070.9,0.51249623]
[1720565777797,2.4309,3072.1,3070.9,0.51249623]
[1720565777961,5.4309,3072.1,3070.9,0.51249623]
[1720565778163,3.431,3072.0,3070.7,0.1122623]
[1720565778391,3.0,3071.9,3070.7,0.1122623]
[1720565780996,2.8207,3071.8,3070.7,0.1122623]
[1720565781172,6.431,3071.7,3070.7,0.1122623]
[1720565782112,0.55,3071.6,3070.7,0.1122623]
[1720565782412,0.73075,3071.5,3070.7,0.1122623]
[1720565782904,3.431,3071.4,3070.7,0.1122623]
[1720565783115,6.981,3071.3,3070.7,0.1122623]
[1720565785098,2.4033,3071.2,3070.7,0.1122623]
[1720565785322,0.93843,3071.1,3070.7,0.1122623]
[1720565785622,3.93843,3071.1,3070.7,0.1122623]
[1720565786311,3.0,3071.1,3070.7,0.1122623]
[1720565786514,2.4033,3071.2,3070.7,0.1122623]
[1720565787224,3.0,3071.4,3070.7,0.1122623]
[1720565787523,0.34047127,3071.5,3070.7,0.1122623]
[1720565792399,3.431,3071.4,3070.7,0.1122623]
[1720565792566,3.37714713,3071.3,3070.7,0.1122623]
[1720565792772,0.37714713,3071.3,3070.7,0.1122623]
[1720565793086,0.34047127,3071.5,3070.7,0.1122623]
[1720565793294,0.55,3071.4,3070.7,0.1122623]
[1720565794711,3.981,3071.4,3070.7,0.1122623]
[1720565795015,3.0,3071.3,3070.7,0.1122623]
[1720565795249,0.55,3071.4,3070.7,0.1122623]
[1720565795380,0.34047127,3071.5,3070.7,0.1122623]
[1720565795573,0.33404713,3071.4,3070.7,0.1122623]
[1720565796515,3.76504713,3071.4,3070.7,0.1122623]
[1720565796715,3.0,3071.3,3070.7,0.1122623]
[1720565797230,6.431,3071.3,3070.7,0.1122623]
[1720565797372,3.981,3071.2,3070.7,0.1122623]
[1720565797572,3.6981,3071.1,3070.7,0.1122623]
[1720565797799,3.0,3071.1,3070.7,0.1122623]
[1720565798207,3.77151403,3071.0,3070.7,0.1122623]
[1720565798378,5.3698,3070.9,3070.7,0.1122623]
[1720565799420,8.8008,3070.9,3070.7,0.1122623]
[1720565799587,4.8951314,3070.8,3070.7,0.1122623]
[1720565799791,7.8951314,3070.8,3070.7,0.1122623]
[1720565801839,4.4641314,3070.8,3070.7,0.1122623]
[1720565802918,3.9141314,3070.8,3070.7,0.1122623]
[1720565803246,3.0,3070.8,3070.7,0.1122623]
[1720565803865,0.34051403,3071.0,3070.7,0.1122623]
[1720565804017,3.77151403,3071.0,3070.7,0.1122623]
[1720565804215,3.0,3070.9,3070.7,0.1122623]
[1720565804539,0.3340514,3070.9,3070.7,0.1122623]
[1720565804728,0.34051403,3071.0,3070.7,0.1122623]
[1720565805376,3.34051403,3071.0,3070.7,0.1122623]
[1720565805722,3.0,3070.9,3070.7,0.1122623]
[1720565805915,6.431,3070.9,3070.7,0.1122623]
[1720565806760,0.55,3070.8,3070.7,0.1122623]
[1720565806970,1.2821514,3070.8,3070.7,0.1122623]
[1720565808168,6.2954,3070.8,3070.7,0.1122623]
[1720565808475,6.2954,3070.8,3069.3,2.4859]
[1720565808476,6.7988359,3070.8,3069.3,2.4859]
[1720565808777,3.431,3070.6,3069.3,2.4859]
[1720565808995,0.55,3070.5,3069.3,2.4859]
[1720565809147,3.0,3070.5,3069.4,0.24859]
[1720565809585,3.0,3070.7,3069.4,0.24859]
[1720565809735,3.0,3070.7,3069.5,0.06514817]
[1720565809931,0.55,3070.8,3069.5,0.34511199]
[1720565810280,0.55,3070.9,3069.5,0.34511199]
[1720565810496,6.981,3070.9,3069.5,0.27996382]
[1720565810697,3.0,3070.8,3069.5,0.27996382]
[1720565810909,0.34051403,3071.0,3069.6,5.0369]
[1720565811201,3.77151403,3071.0,3069.6,5.0369]
[1720565811380,3.0,3070.9,3069.6,2.4859]
[1720565811591,6.8081514,3070.9,3069.6,2.78734538]
[1720565812066,0.50333,3070.8,3069.6,2.78734538]
[1720565812253,0.50333,3070.8,3069.6,2.4859]
[1720565812254,3.93433,3070.8,3069.6,2.4859]
[1720565812453,3.0,3070.7,3069.6,2.4859]
[1720565814083,3.431,3070.6,3069.6,2.4859]
[1720565814302,3.0,3070.7,3068.3,3.25909]
[1720565814303,3.431,3070.4,3068.9,2.48]
[1720565814924,3.0,3070.3,3068.9,2.48]
[1720565815069,3.0,3070.3,3069.0,0.06515709]
[1720565815441,3.0,3070.3,3069.0,0.06515704]
[1720565815734,3.0,3070.3,3069.1,2.7345157]
[1720565815934,0.64052283,3070.6,3069.1,2.7345157]
[1720565816094,0.34052283,3070.6,3069.1,2.7345157]
[1720565816836,0.34052283,3070.6,3067.0,2.02525338]
[1720565816837,3.431,3070.1,3068.5,2.48]
[1720565817055,6.431,3069.9,3068.5,2.48]
[1720565817191,6.48541858,3069.8,3068.5,2.48]
[1720565817392,2.00196044,3069.7,3068.5,2.48]
[1720565817710,0.50341858,3069.6,3068.5,2.48]
[1720565817909,3.50341858,3069.6,3068.5,2.48]
[1720565818110,3.0,3069.6,3068.5,2.48]
[1720565818303,0.50385957,3069.5,3068.5,2.48]
[1720565818522,4.49854186,3069.7,3068.5,2.48]
[1720565818523,0.99681376,3069.6,3068.5,2.48]
[1720565820309,4.42781376,3069.6,3068.5,2.48]
[1720565820526,4.42781376,3069.6,3067.8,2.4293]
[1720565820527,3.431,3069.4,3067.8,2.4293]
[1720565820847,6.93485957,3069.3,3067.9,0.25415623]
[1720565821043,3.431,3069.3,3067.9,0.25415623]
[1720565821243,3.0,3069.2,3067.9,0.25415623]
[1720565821398,3.0,3069.2,3068.0,0.26834562]
[1720565821399,3.6431,3069.2,3068.0,0.26834562]
[1720565822118,3.0,3069.1,3068.0,0.26834562]
[1720565822324,6.431,3069.3,3068.0,0.26834562]
[1720565822631,6.431,3069.3,3068.1,2.4783]
[1720565823565,3.0,3069.3,3068.1,2.4783]
[1720565823760,0.79778138,3069.5,3068.1,2.4783]
[1720565824058,1.30163093,3069.5,3068.2,0.27466456]
[1720565824259,0.79778138,3069.5,3068.2,0.27466456]
[1720565824651,1.30165047,3069.5,3068.2,0.27466456]
[1720565825523,3.981,3069.4,3068.1,2.4783]
[1720565825765,3.0,3069.3,3068.1,2.4783]
[1720565826218,3.0,3069.6,3068.2,2.4829]
[1720565826418,3.0,3069.6,3068.4,2.4829]
[1720565829325,3.431,3070.0,3068.5,0.06517133]
[1720565829525,3.64844874,3070.5,3068.9,2.551]
[1720565829831,3.64844874,3070.5,3069.1,2.4829]
[1720565830053,0.34058969,3070.4,3069.1,2.4829]
[1720565830425,3.77158969,3070.4,3069.1,2.4829]
[1720565831054,0.55,3070.3,3069.1,2.4829]
[1720565832127,0.34058969,3070.4,3069.1,2.4829]
[1720565832333,0.34058969,3070.4,3069.2,0.2738]
[1720565832557,3.34058969,3070.4,3069.2,0.2738]
[1720565832772,0.34058969,3070.4,3069.2,0.2738]
[1720565833282,3.34058969,3070.4,3069.2,0.2738]
[1720565835139,3.0,3070.3,3069.2,0.2738]
[1720565835446,0.34058969,3070.4,3069.4,2.458]
[1720565837186,3.77158969,3070.4,3069.4,2.458]
[1720565837484,3.55,3070.3,3069.4,2.458]
[1720565840460,6.981,3070.3,3069.4,2.458]
[1720565840779,6.981,3070.3,3068.6,2.401]
[1720565840979,3.431,3070.1,3068.6,2.6561]
[1720565841196,0.73215897,3070.2,3068.6,2.401]
[1720565841197,6.981,3070.0,3068.6,2.401]
[1720565842380,3.431,3069.8,3068.6,2.401]
[1720565842548,6.981,3069.7,3068.6,2.401]
[1720565844873,6.981,3069.7,3067.9,2.3533]
[1720565845452,3.7715646,3069.6,3067.9,2.3533]
[1720565845619,3.431,3069.4,3067.9,2.3533]
[1720565845760,6.431,3069.3,3067.9,2.3533]
[1720565845967,0.55,3069.2,3067.9,2.3533]
[1720565846167,3.55,3069.2,3067.9,2.3533]
[1720565847163,5.9008,3069.2,3067.9,2.3533]